[Event "Live Chess"]
[Site "Chess.com"]
[Date "2024.06.01"]
[Round "-"]
[White "IanCalvert2"]
[Black "gobbles19"]
[Result "1-0"]
[WhiteElo "1559"]
[BlackElo "2214"]
[TimeControl "300"]
[EndTime "13:11:23 PDT"]
[Termination "IanCalvert2 won by resignation"]

1. b3 {[%clk 0:04:54.4]} 1... e5 {[%clk 0:04:58.1]} 2. Bb2 {[%clk 0:04:49.3]}
2... d6 {[%clk 0:04:55.5]} 3. d4 {[%clk 0:04:46.7]} 3... Nc6 {[%clk 0:04:50.8]}
4. dxe5 {[%clk 0:04:44.3]} 4... dxe5 {[%clk 0:04:42.2]} 5. Qxd8+ {[%clk
0:04:40.8]} 5... Kxd8 {[%clk 0:04:41.7]} 6. Nf3 {[%clk 0:04:36.1]} 6... Bd6
{[%clk 0:04:40.5]} 7. Nc3 {[%clk 0:04:32.7]} 7... Nge7 {[%clk 0:04:29.2]} 8.
O-O-O {[%clk 0:04:30.2]} 8... Ng6 {[%clk 0:04:15.3]} 9. Ne4 {[%clk 0:04:08.9]}
9... Ke7 {[%clk 0:04:12.3]} 10. Nxd6 {[%clk 0:04:04.1]} 10... cxd6 {[%clk
0:04:12.2]} 11. e4 {[%clk 0:03:57.5]} 11... f5 {[%clk 0:03:59]} 12. Bd3 {[%clk
0:03:45.6]} 12... f4 {[%clk 0:03:52.3]} 13. g3 {[%clk 0:03:34]} 13... Rf8 {[%clk
0:03:47]} 14. Be2 {[%clk 0:02:48.2]} 14... Bg4 {[%clk 0:03:39.5]} 15. Rhf1
{[%clk 0:02:41.9]} 15... Rac8 {[%clk 0:03:33.3]} 16. Ng1 {[%clk 0:02:26.5]}
16... Be6 {[%clk 0:02:50.8]} 17. c4 {[%clk 0:02:14.6]} 17... a6 {[%clk
0:02:37.8]} 18. h4 {[%clk 0:02:03.6]} 18... b5 {[%clk 0:02:10.8]} 19. cxb5
{[%clk 0:01:51]} 19... axb5 {[%clk 0:02:10.7]} 20. Kb1 {[%clk 0:01:47.7]} 20...
b4 {[%clk 0:01:38.4]} 21. Rc1 {[%clk 0:01:43.7]} 21... Kf7 {[%clk 0:01:23.5]}
22. Bc4 {[%clk 0:01:32.2]} 22... Nge7 {[%clk 0:01:20.3]} 23. gxf4 {[%clk
0:01:15.6]} 23... exf4 {[%clk 0:01:17.7]} 24. Nf3 {[%clk 0:01:13.3]} 24... Ng6
{[%clk 0:00:59.2]} 25. Ng5+ {[%clk 0:01:09]} 25... Ke7 {[%clk 0:00:55.6]} 26.
Bxe6 {[%clk 0:01:07.6]} 26... Rc7 {[%clk 0:00:53.3]} 27. Bd5 {[%clk 0:01:03.2]}
1-0

[Event "Live Chess"]
[Site "Chess.com"]
[Date "2024.06.01"]
[Round "-"]
[White "blunderabit"]
[Black "DoctorMantisTobogganMD"]
[Result "0-1"]
[WhiteElo "1807"]
[BlackElo "2172"]
[TimeControl "300"]
[EndTime "13:11:28 PDT"]
[Termination "DoctorMantisTobogganMD won on time"]

1. e4 {[%clk 0:04:46.7]} 1... c6 {[%clk 0:04:58.9]} 2. d4 {[%clk 0:04:40.9]}
2... g6 {[%clk 0:04:58.8]} 3. Nc3 {[%clk 0:04:37.9]} 3... Bg7 {[%clk 0:04:56.1]}
4. Nf3 {[%clk 0:04:35.4]} 4... d5 {[%clk 0:04:55.3]} 5. h3 {[%clk 0:04:34.2]}
5... Nf6 {[%clk 0:04:53.7]} 6. Bd3 {[%clk 0:04:30.8]} 6... dxe4 {[%clk
0:04:52.3]} 7. Nxe4 {[%clk 0:04:29]} 7... Nxe4 {[%clk 0:04:51.5]} 8. Bxe4 {[%clk
0:04:27.4]} 8... Nd7 {[%clk 0:04:51.4]} 9. O-O {[%clk 0:04:24.7]} 9... O-O
{[%clk 0:04:50.2]} 10. c3 {[%clk 0:04:22.1]} 10... e5 {[%clk 0:04:48.2]} 11. Be3
{[%clk 0:04:16.8]} 11... exd4 {[%clk 0:04:46.2]} 12. Bxd4 {[%clk 0:04:14.3]}
12... Bxd4 {[%clk 0:04:43.4]} 13. Qxd4 {[%clk 0:04:10.9]} 13... Nb6 {[%clk
0:04:39]} 14. Rad1 {[%clk 0:04:06.4]} 14... Qxd4 {[%clk 0:04:37.4]} 15. Rxd4
{[%clk 0:04:03.5]} 15... Be6 {[%clk 0:04:36.5]} 16. b3 {[%clk 0:04:00.4]} 16...
Rfd8 {[%clk 0:04:26.6]} 17. Rfd1 {[%clk 0:03:56]} 17... Rxd4 {[%clk 0:04:25.5]}
18. Rxd4 {[%clk 0:03:54.5]} 18... Re8 {[%clk 0:04:23.3]} 19. Bc2 {[%clk
0:03:29.4]} 19... Kg7 {[%clk 0:04:19.1]} 20. c4 {[%clk 0:03:18.8]} 20... Re7
{[%clk 0:04:07.6]} 21. Re4 {[%clk 0:03:14.2]} 21... Rd7 {[%clk 0:03:59.2]} 22.
Re2 {[%clk 0:03:03.5]} 22... Rd8 {[%clk 0:03:50.2]} 23. Kf1 {[%clk 0:03:00.1]}
23... h6 {[%clk 0:03:37.7]} 24. Ke1 {[%clk 0:02:58.2]} 24... Kf6 {[%clk
0:03:35.7]} 25. Rd2 {[%clk 0:02:55.1]} 25... Rxd2 {[%clk 0:03:34.2]} 26. Kxd2
{[%clk 0:02:52.9]} 26... Nd7 {[%clk 0:03:33.4]} 27. Nd4 {[%clk 0:02:48.2]} 27...
a6 {[%clk 0:03:28.3]} 28. f4 {[%clk 0:02:31.5]} 28... c5 {[%clk 0:03:20.3]} 29.
Nxe6 {[%clk 0:02:27]} 29... Kxe6 {[%clk 0:03:18.7]} 30. Ke3 {[%clk 0:02:24.7]}
30... f5 {[%clk 0:03:15.5]} 31. Bd1 {[%clk 0:02:20.9]} 31... Kd6 {[%clk
0:03:05.8]} 32. Bf3 {[%clk 0:02:15.7]} 32... b6 {[%clk 0:02:58.8]} 33. Bb7
{[%clk 0:01:53.2]} 33... a5 {[%clk 0:02:55.6]} 34. Bd5 {[%clk 0:01:50.2]} 34...
Ke7 {[%clk 0:02:52]} 35. Kf3 {[%clk 0:01:36.8]} 35... Nf6 {[%clk 0:02:48.2]} 36.
Bc6 {[%clk 0:01:33.4]} 36... Kd6 {[%clk 0:02:39.9]} 37. Ba8 {[%clk 0:01:31.2]}
37... Ne8 {[%clk 0:02:31.9]} 38. Bd5 {[%clk 0:01:26.7]} 38... Ke7 {[%clk
0:02:30.3]} 39. g4 {[%clk 0:01:18.9]} 39... Kf6 {[%clk 0:02:28.4]} 40. gxf5
{[%clk 0:01:15.1]} 40... gxf5 {[%clk 0:02:28.3]} 41. Bc6 {[%clk 0:01:09.8]}
41... Nd6 {[%clk 0:02:26.1]} 42. Ke3 {[%clk 0:01:03.2]} 42... Kg6 {[%clk
0:02:20]} 43. Kf3 {[%clk 0:00:59.5]} 43... Kh5 {[%clk 0:02:18.7]} 44. Bd7 {[%clk
0:00:46.4]} 44... Kg6 {[%clk 0:02:11.5]} 45. Ke3 {[%clk 0:00:42.8]} 45... Ne4
{[%clk 0:02:09]} 46. Be8+ {[%clk 0:00:35]} 46... Kf6 {[%clk 0:02:07.5]} 47. Bh5
{[%clk 0:00:32.1]} 47... Nc3 {[%clk 0:02:04.6]} 48. a3 {[%clk 0:00:24.7]} 48...
Nb1 {[%clk 0:02:00.9]} 49. a4 {[%clk 0:00:22.6]} 49... Nc3 {[%clk 0:02:00]} 50.
Kd3 {[%clk 0:00:19.2]} 50... Ne4 {[%clk 0:01:57.1]} 51. Ke3 {[%clk 0:00:17]}
51... Nd6 {[%clk 0:01:51.7]} 52. Bf3 {[%clk 0:00:14]} 52... Nc8 {[%clk
0:01:48.1]} 53. Bd5 {[%clk 0:00:11.1]} 53... Ne7 {[%clk 0:01:48]} 54. Bf3 {[%clk
0:00:08.4]} 54... Ng6 {[%clk 0:01:44.4]} 55. Bh5 {[%clk 0:00:04.1]} 55... Nf8
{[%clk 0:01:43.6]} 56. Bf3 {[%clk 0:00:02.2]} 56... Ne6 {[%clk 0:01:43]} 57. Bh5
{[%clk 0:00:01]} 57... Nd4 {[%clk 0:01:42.9]} 0-1

[Event "Live Chess"]
[Site "Chess.com"]
[Date "2024.06.01"]
[Round "-"]
[White "GEMdzq"]
[Black "booktrunk"]
[Result "1-0"]
[WhiteElo "2266"]
[BlackElo "1388"]
[TimeControl "300"]
[EndTime "13:11:45 PDT"]
[Termination "GEMdzq won by resignation"]

1. e4 {[%clk 0:04:57.3]} 1... b6 {[%clk 0:04:56.5]} 2. d4 {[%clk 0:04:55.9]}
2... e6 {[%clk 0:04:50.6]} 3. Nf3 {[%clk 0:04:54.8]} 3... Ba6 {[%clk 0:04:47.4]}
4. Bxa6 {[%clk 0:04:49.7]} 4... Nxa6 {[%clk 0:04:45.9]} 5. O-O {[%clk
0:04:49.6]} 5... c6 {[%clk 0:04:40.8]} 6. Qe2 {[%clk 0:04:47.7]} 6... Nc7 {[%clk
0:04:39.8]} 7. c4 {[%clk 0:04:46]} 7... Bb4 {[%clk 0:04:38.5]} 8. a3 {[%clk
0:04:44.6]} 8... Be7 {[%clk 0:04:36.9]} 9. Nc3 {[%clk 0:04:42.5]} 9... f6 {[%clk
0:04:35.5]} 10. d5 {[%clk 0:04:37.6]} 10... cxd5 {[%clk 0:04:32.7]} 11. exd5
{[%clk 0:04:36.9]} 11... exd5 {[%clk 0:04:31.5]} 12. cxd5 {[%clk 0:04:35.9]}
12... d6 {[%clk 0:04:21.2]} 13. Re1 {[%clk 0:04:34.5]} 13... Qd7 {[%clk
0:04:16]} 14. Nd4 {[%clk 0:04:33.4]} 14... O-O-O {[%clk 0:04:13.9]} 15. Qa6+
{[%clk 0:04:27.1]} 15... Kb8 {[%clk 0:04:11.3]} 16. Nc6+ {[%clk 0:04:27]} 1-0

[Event "Live Chess"]
[Site "Chess.com"]
[Date "2024.06.01"]
[Round "-"]
[White "ACM42"]
[Black "CarmelJane"]
[Result "0-1"]
[WhiteElo "2186"]
[BlackElo "2089"]
[TimeControl "300"]
[EndTime "13:11:55 PDT"]
[Termination "CarmelJane won on time"]

1. e4 {[%clk 0:04:57.8]} 1... c5 {[%clk 0:04:59]} 2. Nf3 {[%clk 0:04:56.3]} 2...
e6 {[%clk 0:04:58.6]} 3. d4 {[%clk 0:04:55.8]} 3... cxd4 {[%clk 0:04:58.5]} 4.
Nxd4 {[%clk 0:04:55.1]} 4... Nf6 {[%clk 0:04:58.1]} 5. Nc3 {[%clk 0:04:53.5]}
5... Nc6 {[%clk 0:04:57.6]} 6. Nxc6 {[%clk 0:04:49.6]} 6... bxc6 {[%clk
0:04:57.5]} 7. e5 {[%clk 0:04:48.6]} 7... Nd5 {[%clk 0:04:57.1]} 8. Ne4 {[%clk
0:04:47.9]} 8... Qc7 {[%clk 0:04:55.8]} 9. f4 {[%clk 0:04:43.5]} 9... Qb6 {[%clk
0:04:54.9]} 10. a3 {[%clk 0:04:26.5]} 10... f5 {[%clk 0:04:53.1]} 11. Ng3 {[%clk
0:04:10.9]} 11... Bc5 {[%clk 0:04:44.6]} 12. Bd3 {[%clk 0:04:06.3]} 12... Bf2+
{[%clk 0:04:39]} 13. Kf1 {[%clk 0:03:59.8]} 13... Ne3+ {[%clk 0:04:19.2]} 14.
Bxe3 {[%clk 0:03:57.1]} 14... Bxe3 {[%clk 0:04:19.1]} 15. Qf3 {[%clk 0:02:49.2]}
15... Qd4 {[%clk 0:03:57.7]} 16. Nh5 {[%clk 0:02:39.5]} 16... g6 {[%clk
0:03:28.9]} 17. Nf6+ {[%clk 0:02:33.4]} 17... Kf7 {[%clk 0:03:28.2]} 18. Re1
{[%clk 0:02:02.3]} 18... Bxf4 {[%clk 0:03:14.6]} 19. c3 {[%clk 0:02:00.7]} 19...
Qa4 {[%clk 0:03:04.4]} 20. b3 {[%clk 0:01:59.1]} 20... Qxb3 {[%clk 0:02:46.9]}
21. Qxf4 {[%clk 0:01:57.1]} 21... Qxc3 {[%clk 0:02:46.5]} 22. Re3 {[%clk
0:01:24.3]} 22... d6 {[%clk 0:02:32.3]} 23. Ne4 {[%clk 0:01:14.6]} 23... dxe5
{[%clk 0:02:06.1]} 24. Nd6+ {[%clk 0:00:26.2]} 24... Ke7 {[%clk 0:01:58.1]} 25.
Nxc8+ {[%clk 0:00:25.1]} 25... Raxc8 {[%clk 0:01:55.1]} 26. Qxe5 {[%clk
0:00:24.5]} 26... Qxe5 {[%clk 0:01:37.2]} 27. Rxe5 {[%clk 0:00:23.2]} 27... Rhd8
{[%clk 0:01:36.8]} 28. Ke2 {[%clk 0:00:21.5]} 28... Rd5 {[%clk 0:01:35.2]} 29.
Rxd5 {[%clk 0:00:19.5]} 29... cxd5 {[%clk 0:01:35.1]} 30. Rb1 {[%clk 0:00:17.9]}
30... Rc7 {[%clk 0:01:30.3]} 31. Rb5 {[%clk 0:00:16]} 31... Kd6 {[%clk
0:01:29.5]} 32. a4 {[%clk 0:00:15.1]} 32... e5 {[%clk 0:01:27.5]} 33. a5 {[%clk
0:00:14.2]} 33... e4 {[%clk 0:01:26.6]} 34. Bb1 {[%clk 0:00:12.8]} 34... d4
{[%clk 0:01:25.9]} 35. a6 {[%clk 0:00:10.9]} 35... d3+ {[%clk 0:01:25.1]} 36.
Ke3 {[%clk 0:00:09.4]} 36... Kc6 {[%clk 0:01:17.2]} 37. Rb2 {[%clk 0:00:08.3]}
37... Rd7 {[%clk 0:01:16.2]} 38. Kd2 {[%clk 0:00:05.2]} 38... f4 {[%clk
0:01:14.9]} 39. g3 {[%clk 0:00:02.5]} 39... e3+ {[%clk 0:01:13.9]} 40. Ke1
{[%clk 0:00:01.9]} 40... d2+ {[%clk 0:01:13.2]} 41. Kd1 {[%clk 0:00:01.2]} 41...
f3 {[%clk 0:01:12.5]} 0-1

[Event "Live Chess"]
[Site "Chess.com"]
[Date "2024.06.01"]
[Round "-"]
[White "KwikPhoenix"]
[Black "Queensandpawns"]
[Result "1/2-1/2"]
[WhiteElo "2461"]
[BlackElo "2380"]
[TimeControl "300"]
[EndTime "13:11:58 PDT"]
[Termination "Game drawn by agreement"]

1. Nc3 {[%clk 0:04:58.1]} 1... e5 {[%clk 0:04:58.1]} 2. Nf3 {[%clk 0:04:56.2]}
2... Nc6 {[%clk 0:04:57.1]} 3. d4 {[%clk 0:04:55.7]} 3... exd4 {[%clk
0:04:56.2]} 4. Nxd4 {[%clk 0:04:55.6]} 4... Bc5 {[%clk 0:04:55.5]} 5. Nb3 {[%clk
0:04:53.9]} 5... Bb6 {[%clk 0:04:54.1]} 6. e4 {[%clk 0:04:53.2]} 6... Nf6 {[%clk
0:04:53.7]} 7. Bg5 {[%clk 0:04:46]} 7... d6 {[%clk 0:04:49.2]} 8. Bd3 {[%clk
0:04:30.6]} 8... h6 {[%clk 0:04:47.1]} 9. Bh4 {[%clk 0:04:26]} 9... g5 {[%clk
0:04:44.4]} 10. Bg3 {[%clk 0:04:24.9]} 10... Ne5 {[%clk 0:04:44.1]} 11. Qd2
{[%clk 0:04:08.9]} 11... a5 {[%clk 0:04:40.9]} 12. a4 {[%clk 0:04:04.5]} 12...
Be6 {[%clk 0:04:38.6]} 13. Nc1 {[%clk 0:03:57.6]} 13... Nc4 {[%clk 0:04:36.8]}
14. Bxc4 {[%clk 0:03:53.5]} 14... Bxc4 {[%clk 0:04:36.7]} 15. Nd3 {[%clk
0:03:47.7]} 15... Qe7 {[%clk 0:04:34]} 16. O-O-O {[%clk 0:03:40.2]} 16... O-O-O
{[%clk 0:04:31.7]} 17. Rhe1 {[%clk 0:03:25.9]} 17... Qd7 {[%clk 0:04:25.7]} 18.
e5 {[%clk 0:03:11.3]} 18... Nd5 {[%clk 0:04:19.1]} 19. b3 {[%clk 0:03:00.2]}
19... Nxc3 {[%clk 0:04:08]} 20. Qxc3 {[%clk 0:02:54.3]} 20... Bxd3 {[%clk
0:04:06.5]} 21. Rxd3 {[%clk 0:02:47.9]} 21... d5 {[%clk 0:04:06.4]} 1/2-1/2

[Event "Live Chess"]
[Site "Chess.com"]
[Date "2024.06.01"]
[Round "-"]
[White "PatientChessPapa"]
[Black "alicechristina"]
[Result "1/2-1/2"]
[WhiteElo "810"]
[BlackElo "1807"]
[TimeControl "300"]
[EndTime "13:11:59 PDT"]
[Termination "Game drawn by repetition"]

1. e4 {[%clk 0:04:56.4]} 1... e5 {[%clk 0:04:58.1]} 2. Nf3 {[%clk 0:04:53.6]}
2... Nf6 {[%clk 0:04:57.1]} 3. Nc3 {[%clk 0:04:52]} 3... Nc6 {[%clk 0:04:50.5]}
4. d4 {[%clk 0:04:47.9]} 4... exd4 {[%clk 0:04:44.4]} 5. Nxd4 {[%clk 0:04:46.8]}
5... Bb4 {[%clk 0:04:40.6]} 6. Bg5 {[%clk 0:04:25.2]} 6... h6 {[%clk 0:04:35.4]}
7. Bh4 {[%clk 0:04:22.5]} 7... g5 {[%clk 0:04:33.6]} 8. Bg3 {[%clk 0:04:15]}
8... Nxe4 {[%clk 0:04:32.5]} 9. Qe2 {[%clk 0:03:47.3]} 9... O-O {[%clk
0:04:19.8]} 10. O-O-O {[%clk 0:03:18.8]} 10... Bxc3 {[%clk 0:04:13.1]} 11. bxc3
{[%clk 0:03:17.4]} 11... Nxc3 {[%clk 0:04:11.1]} 12. Qh5 {[%clk 0:03:11.5]}
12... Nxd1 {[%clk 0:04:07.1]} 13. Qxh6 {[%clk 0:03:10]} 13... Nxd4 {[%clk
0:03:54.6]} 14. Bd3 {[%clk 0:03:01]} 14... f5 {[%clk 0:03:42.7]} 15. Qg6+ {[%clk
0:02:50]} 15... Kh8 {[%clk 0:03:38.5]} 16. Qh6+ {[%clk 0:02:48.9]} 16... Kg8
{[%clk 0:03:37.4]} 17. Qg6+ {[%clk 0:02:48]} 17... Kh8 {[%clk 0:03:22.1]} 18.
Qh6+ {[%clk 0:02:47]} 18... Kg8 {[%clk 0:03:15.3]} 1/2-1/2

[Event "Live Chess"]
[Site "Chess.com"]
[Date "2024.06.01"]
[Round "-"]
[White "Sweet-O"]
[Black "RichardABates"]
[Result "0-1"]
[WhiteElo "1550"]
[BlackElo "2215"]
[TimeControl "300"]
[EndTime "13:12:05 PDT"]
[Termination "RichardABates won by resignation"]

1. d4 {[%clk 0:04:57.9]} 1... Nf6 {[%clk 0:04:57.7]} 2. Nc3 {[%clk 0:04:57.8]}
2... d5 {[%clk 0:04:55.6]} 3. Bf4 {[%clk 0:04:56.9]} 3... c5 {[%clk 0:04:52.8]}
4. e3 {[%clk 0:04:56]} 4... cxd4 {[%clk 0:04:51.5]} 5. Qxd4 {[%clk 0:04:55.9]}
5... Nc6 {[%clk 0:04:49.4]} 6. Qd2 {[%clk 0:04:53.3]} 6... e5 {[%clk 0:04:47.5]}
7. Bg3 {[%clk 0:04:51]} 7... Bb4 {[%clk 0:04:45.1]} 8. a3 {[%clk 0:04:47.7]}
8... Qa5 {[%clk 0:04:43.6]} 9. Bb5 {[%clk 0:04:37.8]} 9... Ne4 {[%clk
0:04:34.6]} 10. Qxd5 {[%clk 0:04:16.9]} 10... Bxc3+ {[%clk 0:04:33]} 11. Ke2
{[%clk 0:04:07.1]} 11... Nxg3+ {[%clk 0:04:23.9]} 12. hxg3 {[%clk 0:04:04.5]}
12... O-O {[%clk 0:04:14.4]} 13. bxc3 {[%clk 0:03:51.8]} 13... Qxc3 {[%clk
0:04:12]} 14. Nf3 {[%clk 0:03:49.5]} 14... Be6 {[%clk 0:04:05.8]} 15. Qd3 {[%clk
0:03:42.1]} 15... Qxd3+ {[%clk 0:04:04.2]} 16. cxd3 {[%clk 0:03:39]} 16... f6
{[%clk 0:03:58.7]} 17. Rac1 {[%clk 0:03:20.1]} 17... Rac8 {[%clk 0:03:51.2]} 18.
Kd2 {[%clk 0:03:06.8]} 18... Na5 {[%clk 0:03:49.4]} 19. Rxc8 {[%clk 0:03:03.6]}
19... Rxc8 {[%clk 0:03:47]} 20. Rc1 {[%clk 0:03:02.3]} 20... Nb3+ {[%clk
0:03:45.4]} 0-1

[Event "Live Chess"]
[Site "Chess.com"]
[Date "2024.06.01"]
[Round "-"]
[White "WilliamofOrange16th"]
[Black "nffc11"]
[Result "1-0"]
[WhiteElo "1982"]
[BlackElo "1994"]
[TimeControl "300"]
[EndTime "13:12:31 PDT"]
[Termination "WilliamofOrange16th won on time"]

1. e4 {[%clk 0:04:57.7]} 1... c6 {[%clk 0:04:57.1]} 2. d4 {[%clk 0:04:54.8]}
2... d5 {[%clk 0:04:55.7]} 3. f3 {[%clk 0:04:54.4]} 3... dxe4 {[%clk 0:04:52.4]}
4. fxe4 {[%clk 0:04:54.3]} 4... e5 {[%clk 0:04:52.1]} 5. Nf3 {[%clk 0:04:51.6]}
5... Bg4 {[%clk 0:04:38.4]} 6. c3 {[%clk 0:04:50.2]} 6... Nd7 {[%clk 0:04:33.9]}
7. Bc4 {[%clk 0:04:49]} 7... Ngf6 {[%clk 0:04:10.9]} 8. Bg5 {[%clk 0:04:48]}
8... Be7 {[%clk 0:03:59.3]} 9. O-O {[%clk 0:04:45.1]} 9... O-O {[%clk
0:03:58.1]} 10. h3 {[%clk 0:04:40.5]} 10... Bh5 {[%clk 0:03:46.7]} 11. Nbd2
{[%clk 0:04:38.3]} 11... h6 {[%clk 0:03:41.8]} 12. Bh4 {[%clk 0:04:34]} 12...
Bg6 {[%clk 0:03:15.7]} 13. dxe5 {[%clk 0:04:30.7]} 13... Nxe4 {[%clk 0:03:10.3]}
14. Bxe7 {[%clk 0:04:30.6]} 14... Qxe7 {[%clk 0:03:08.1]} 15. Nxe4 {[%clk
0:04:29.8]} 15... Bxe4 {[%clk 0:03:06.7]} 16. Qe2 {[%clk 0:04:04.6]} 16... Qc5+
{[%clk 0:02:47.1]} 17. Kh1 {[%clk 0:04:01.2]} 17... Bxf3 {[%clk 0:02:44.8]} 18.
Rxf3 {[%clk 0:03:56.4]} 18... Nxe5 {[%clk 0:02:40.7]} 19. Rf4 {[%clk 0:03:51.6]}
19... Nxc4 {[%clk 0:02:32.3]} 20. Rxc4 {[%clk 0:03:49.5]} 20... Qg5 {[%clk
0:02:22.1]} 21. Re4 {[%clk 0:03:46.1]} 21... Rad8 {[%clk 0:02:14.7]} 22. h4
{[%clk 0:03:37.5]} 22... Qd2 {[%clk 0:02:04.5]} 23. Re1 {[%clk 0:03:36.5]} 23...
Qxe2 {[%clk 0:01:55.3]} 24. R1xe2 {[%clk 0:03:36.4]} 24... Rd1+ {[%clk
0:01:54.2]} 25. Kh2 {[%clk 0:03:35]} 25... Rfd8 {[%clk 0:01:52.1]} 26. Re7
{[%clk 0:03:34.3]} 26... R8d7 {[%clk 0:01:47.6]} 27. Rxd7 {[%clk 0:03:24.3]}
27... Rxd7 {[%clk 0:01:45.7]} 28. Kg3 {[%clk 0:03:23.7]} 28... f6 {[%clk
0:01:41.8]} 29. Kf3 {[%clk 0:03:22.9]} 29... Kf7 {[%clk 0:01:40.9]} 30. g4
{[%clk 0:03:22]} 30... Rd3+ {[%clk 0:01:35.3]} 31. Kf4 {[%clk 0:03:20.8]} 31...
Rd6 {[%clk 0:01:30.6]} 32. a4 {[%clk 0:03:16.8]} 32... Rd3 {[%clk 0:01:24]} 33.
h5 {[%clk 0:03:14.6]} 33... Rd6 {[%clk 0:01:15.5]} 34. Re3 {[%clk 0:03:11.1]}
34... Re6 {[%clk 0:01:14]} 35. Rd3 {[%clk 0:03:09.9]} 35... Ke7 {[%clk
0:01:13.6]} 36. b4 {[%clk 0:03:07.5]} 36... Rd6 {[%clk 0:01:09.8]} 37. Re3+
{[%clk 0:03:06.8]} 37... Kd7 {[%clk 0:01:09.3]} 38. Kf5 {[%clk 0:03:02.7]} 38...
Rd5+ {[%clk 0:01:06.5]} 39. Kg6 {[%clk 0:03:01.7]} 39... Rg5+ {[%clk 0:01:05.7]}
40. Kf7 {[%clk 0:03:01]} 40... Rxg4 {[%clk 0:01:02.9]} 41. Rd3+ {[%clk
0:03:00.4]} 41... Kc7 {[%clk 0:01:00.4]} 42. a5 {[%clk 0:02:58.4]} 42... f5
{[%clk 0:00:56.8]} 43. Ke6 {[%clk 0:02:54.4]} 43... Rg5 {[%clk 0:00:52.1]} 44.
Rd7+ {[%clk 0:02:49.9]} 44... Kc8 {[%clk 0:00:51.3]} 45. Ke7 {[%clk 0:02:40.3]}
45... a6 {[%clk 0:00:43.4]} 46. Rd8+ {[%clk 0:02:33.3]} 46... Kc7 {[%clk
0:00:42.8]} 47. Rd7+ {[%clk 0:02:32.4]} 47... Kb8 {[%clk 0:00:42.2]} 48. Rd8+
{[%clk 0:02:22]} 48... Ka7 {[%clk 0:00:41.3]} 49. Kd7 {[%clk 0:02:08.4]} 49...
f4 {[%clk 0:00:29.5]} 50. Rf8 {[%clk 0:02:07]} 50... Rxh5 {[%clk 0:00:25.1]} 51.
Kc7 {[%clk 0:02:01.3]} 51... Re5 {[%clk 0:00:19.4]} 52. Rxf4 {[%clk 0:01:58.7]}
52... Re7+ {[%clk 0:00:18]} 53. Kd6 {[%clk 0:01:56.4]} 53... Re8 {[%clk
0:00:15.1]} 54. Rf7 {[%clk 0:01:52.2]} 54... Rg8 {[%clk 0:00:14]} 55. c4 {[%clk
0:01:46.9]} 55... g5 {[%clk 0:00:13.1]} 56. Rh7 {[%clk 0:01:45]} 56... g4 {[%clk
0:00:09.8]} 57. Rxh6 {[%clk 0:01:43.8]} 57... g3 {[%clk 0:00:09.7]} 58. Rh1
{[%clk 0:01:42.7]} 58... g2 {[%clk 0:00:09.2]} 59. Rg1 {[%clk 0:01:42.2]} 59...
Kb8 {[%clk 0:00:08.2]} 60. Kd7 {[%clk 0:01:29.3]} 60... Rg7+ {[%clk 0:00:07.5]}
61. Kd6 {[%clk 0:01:28.4]} 61... Kc8 {[%clk 0:00:06.7]} 62. b5 {[%clk
0:01:12.6]} 62... Kd8 {[%clk 0:00:06.3]} 63. bxa6 {[%clk 0:01:09.5]} 63... bxa6
{[%clk 0:00:05.2]} 64. Kxc6 {[%clk 0:01:09]} 64... Rg6+ {[%clk 0:00:04.8]} 65.
Kb7 {[%clk 0:01:06.2]} 65... Kd7 {[%clk 0:00:04.4]} 66. c5 {[%clk 0:01:04.8]}
66... Rg5 {[%clk 0:00:02]} 67. c6+ {[%clk 0:01:03.5]} 67... Ke7 {[%clk 0:00:01]}
68. c7 {[%clk 0:01:02.7]} 1-0

[Event "Live Chess"]
[Site "Chess.com"]
[Date "2024.06.01"]
[Round "-"]
[White "Silverback7829"]
[Black "sebmoran1"]
[Result "0-1"]
[WhiteElo "987"]
[BlackElo "1482"]
[TimeControl "300"]
[EndTime "13:12:35 PDT"]
[Termination "sebmoran1 won by checkmate"]

1. d4 {[%clk 0:04:57.9]} 1... Nf6 {[%clk 0:04:58.8]} 2. Nf3 {[%clk 0:04:56.5]}
2... g6 {[%clk 0:04:57.7]} 3. Nc3 {[%clk 0:04:55.2]} 3... Bg7 {[%clk 0:04:56.8]}
4. e3 {[%clk 0:04:53.7]} 4... O-O {[%clk 0:04:55.6]} 5. Bc4 {[%clk 0:04:51.6]}
5... d5 {[%clk 0:04:54.1]} 6. Bd3 {[%clk 0:04:47.5]} 6... Nc6 {[%clk 0:04:51.7]}
7. Bd2 {[%clk 0:04:44.8]} 7... Re8 {[%clk 0:04:47.8]} 8. O-O {[%clk 0:04:42]}
8... Bg4 {[%clk 0:04:46.8]} 9. h3 {[%clk 0:04:36.5]} 9... Bxf3 {[%clk 0:04:45]}
10. Qxf3 {[%clk 0:04:33.2]} 10... e5 {[%clk 0:04:44.9]} 11. Bb5 {[%clk
0:04:28.1]} 11... e4 {[%clk 0:04:42.8]} 12. Qe2 {[%clk 0:04:24.7]} 12... a6
{[%clk 0:04:41.9]} 13. Bxc6 {[%clk 0:04:23]} 13... bxc6 {[%clk 0:04:41.8]} 14.
Na4 {[%clk 0:04:16.6]} 14... Qb8 {[%clk 0:04:38.1]} 15. Bc3 {[%clk 0:04:02.7]}
15... Nd7 {[%clk 0:04:21.4]} 16. Rab1 {[%clk 0:03:57.5]} 16... Nb6 {[%clk
0:04:19.5]} 17. Nxb6 {[%clk 0:03:54.5]} 17... cxb6 {[%clk 0:04:19.4]} 18. f3
{[%clk 0:03:51]} 18... c5 {[%clk 0:04:10.1]} 19. fxe4 {[%clk 0:03:48.2]} 19...
cxd4 {[%clk 0:04:08]} 20. exd4 {[%clk 0:03:43.5]} 20... Rxe4 {[%clk 0:04:05.5]}
21. Qf3 {[%clk 0:03:34.2]} 21... Qe8 {[%clk 0:04:00.1]} 22. Rbe1 {[%clk
0:03:30.2]} 22... Rxe1 {[%clk 0:03:57.8]} 23. Bxe1 {[%clk 0:03:24.3]} 23...
Bxd4+ {[%clk 0:03:54.4]} 24. Kh1 {[%clk 0:03:19.1]} 24... Bxb2 {[%clk
0:03:47.2]} 25. Kh2 {[%clk 0:03:01.5]} 25... Be5+ {[%clk 0:03:43.4]} 26. Kg1
{[%clk 0:02:58.7]} 26... f5 {[%clk 0:03:40.3]} 27. Qxd5+ {[%clk 0:02:53.5]}
27... Kg7 {[%clk 0:03:34.4]} 28. Bb4 {[%clk 0:02:33.9]} 28... Rd8 {[%clk
0:03:21.7]} 29. Qf3 {[%clk 0:02:27.7]} 29... Qb5 {[%clk 0:03:17.3]} 30. Qb7+
{[%clk 0:02:22]} 30... Kh6 {[%clk 0:03:11.3]} 31. Qe7 {[%clk 0:02:16.7]} 31...
Bd4+ {[%clk 0:03:04.7]} 32. Kh1 {[%clk 0:02:07.7]} 32... Qxf1+ {[%clk
0:03:02.8]} 33. Kh2 {[%clk 0:02:02.8]} 33... Qf4+ {[%clk 0:03:01.6]} 34. Kh1
{[%clk 0:01:59.5]} 34... Qf2 {[%clk 0:02:45]} 35. Qxd8 {[%clk 0:01:56.8]} 35...
Qg1# {[%clk 0:02:43.1]} 0-1

[Event "Live Chess"]
[Site "Chess.com"]
[Date "2024.06.01"]
[Round "-"]
[White "Duke_of_Bebington"]
[Black "MagnersCarlsberg2870"]
[Result "1-0"]
[WhiteElo "1610"]
[BlackElo "1793"]
[TimeControl "300"]
[EndTime "13:13:07 PDT"]
[Termination "Duke_of_Bebington won by resignation"]

1. e4 {[%clk 0:04:57.3]} 1... e5 {[%clk 0:04:57.4]} 2. Nf3 {[%clk 0:04:56.1]}
2... Nf6 {[%clk 0:04:55.6]} 3. d4 {[%clk 0:04:51.7]} 3... exd4 {[%clk
0:04:49.8]} 4. e5 {[%clk 0:04:45.6]} 4... Qe7 {[%clk 0:04:45]} 5. Bg5 {[%clk
0:04:35.8]} 5... Qb4+ {[%clk 0:04:39.1]} 6. Bd2 {[%clk 0:04:27.9]} 6... Qxb2
{[%clk 0:04:37.3]} 7. Na3 {[%clk 0:04:24.2]} 7... Nd5 {[%clk 0:04:21.5]} 8. Nc4
{[%clk 0:04:22.6]} 8... Qb5 {[%clk 0:03:54]} 9. Nd6+ {[%clk 0:04:18.9]} 9...
cxd6 {[%clk 0:03:51.8]} 10. Bxb5 {[%clk 0:04:17]} 10... dxe5 {[%clk 0:03:51]}
11. Nxe5 {[%clk 0:04:11]} 1-0